bitfinex/quotes_SOLUSD_20250902
["timestamp","ask_amount","ask_price","bid_price","bid_amount"]
[1756790221913,38.4,202.83,202.81,0.71]
[1756790222238,38.4,202.83,202.79,0.71]
[1756790223214,38.4,202.83,202.78,0.03]
[1756790223416,38.4,202.83,202.79,0.71]
[1756790223628,38.4,202.83,202.8,0.71]
[1756790223835,0.06,202.85,202.81,0.71]
[1756790224034,38.4,202.83,202.81,0.71]
[1756790224243,0.06,202.85,202.8,4.93096646]
[1756790224244,38.46,202.85,202.82,0.71]
[1756790224744,38.46,202.85,202.83,0.71]
[1756790226550,0.06,202.85,202.84,14.28559401]
[1756790226852,0.06,202.85,202.84,16.5304634]
[1756790227049,0.06,202.85,202.84,20.22007919]
[1756790227422,0.06,202.85,202.84,3.68961579]
[1756790227749,0.06,202.85,202.79,0.69]
[1756790227750,26.06,202.85,202.79,4.93117297]
[1756790227940,64.56,202.85,202.8,3.69042344]
[1756790228131,64.56,202.85,202.8,0.69]
[1756790228443,69.4897795,202.85,202.8,0.69]
[1756790228646,69.4897795,202.85,202.78,0.72]
[1756790228851,0.34,202.84,202.78,0.72]
[1756790229141,0.34,202.84,202.78,5.65141187]
[1756790229439,38.5,202.83,202.79,0.69]
[1756790229646,38.5,202.83,202.79,74.69]
[1756790229955,0.06,202.85,202.8,0.69]
[1756790230741,0.06,202.85,202.81,4.93072333]
[1756790230948,0.06,202.85,202.82,0.69]
[1756790232547,0.06,202.85,202.83,0.69]
[1756790232952,0.06,202.85,202.84,0.69]
[1756790233446,0.06,202.85,202.84,19.89666538]
[1756790233649,0.06,202.89,202.88,13.59559401]
[1756790233861,0.06,202.89,202.88,19.20666538]
[1756790234033,0.06,202.89,202.88,19.89666538]
[1756790234426,0.06,202.89,202.88,24.82568746]
[1756790235847,0.06,202.89,202.88,63.36568746]
[1756790236028,0.06,202.89,202.88,137.36568746]
[1756790238459,0.06,202.89,202.88,139.34055746]
[1756790239545,0.06,202.92,202.88,151.66311266]
[1756790239857,0.06,202.92,202.91,19.20666538]
[1756790240054,0.06,202.92,202.91,57.68666538]
[1756790240362,0.06,202.92,202.91,58.37666538]
[1756790241153,0.06,202.92,202.91,63.30495871]
[1756790241356,0.06,202.92,202.91,57.69388734]
[1756790242347,0.06,202.92,202.91,57.00388734]
[1756790243263,0.06,202.92,202.91,57.69388734]
[1756790243463,0.06,202.92,202.91,131.69388734]
[1756790244162,0.06,202.92,202.91,140.04107471]
[1756790250444,0.06,202.92,202.91,142.01555471]
[1756790251261,0.06,202.96,202.91,154.33628804]
[1756790251464,0.06,202.96,202.94,3.50079136]
[1756790251672,0.06,202.96,202.95,38.42]
[1756790251970,0.06,202.96,202.95,39.11]
[1756790253347,0.06,202.96,202.95,61.13370737]
[1756790254072,0.06,202.96,202.95,56.94291601]
[1756790256166,0.06,202.96,202.95,57.62291601]
[1756790256758,0.06,202.96,202.95,131.62291601]
[1756790257787,0.06,202.96,202.95,135.12370737]
[1756790259278,0.06,202.96,202.95,137.09779737]
[1756790260172,0.06,202.96,202.95,132.87700601]
[1756790260484,0.06,202.96,202.95,94.49700601]
[1756790260667,0.06,202.96,202.95,132.87700601]
[1756790260857,0.06,202.96,202.95,130.90291601]
[1756790262560,0.06,202.96,202.95,135.08370737]
[1756790263374,0.06,202.96,202.95,131.58291601]
[1756790263677,0.06,202.96,202.95,135.08370737]
[1756790267878,0.06,202.99,202.95,147.40201237]
[1756790268064,0.06,202.99,202.98,13.59559401]
[1756790268271,0.06,202.99,202.98,55.47638537]
[1756790270091,0.06,202.99,202.98,60.40297912]
[1756790270967,0.06,202.99,202.98,61.08297912]
[1756790271273,0.06,202.99,202.98,134.40297912]
[1756790276295,0.06,202.99,202.98,130.90218776]
[1756790277373,0.06,202.99,202.98,135.08297912]
[1756790277673,0.06,202.99,202.98,130.90218776]
[1756790278069,0.52,202.99,202.92,13.62559401]
[1756790278309,0.46,202.98,202.93,38.38]
[1756790278503,0.46,202.97,202.94,38.38]
[1756790278708,0.06,202.99,202.95,4.927322]
[1756790279006,0.52,202.99,202.95,4.927322]
[1756790279377,0.06,202.99,202.95,4.927322]
[1756790279572,0.46,202.98,202.95,4.927322]
[1756790280489,0.06,202.99,202.95,5.607322]
[1756790280986,0.06,202.99,202.96,38.38]
[1756790281189,0.06,202.99,202.96,112.38]
[1756790281392,0.06,202.99,202.96,115.88079136]
[1756790281593,0.06,202.99,202.97,0.68]
[1756790282726,0.06,202.99,202.96,112.38]
[1756790282884,0.06,202.99,202.96,74.0]
[1756790283700,0.06,202.99,202.96,79.60699748]
[1756790283881,0.06,202.99,202.97,0.68]
[1756790284081,0.06,202.99,202.97,39.06]
[1756790284308,0.06,202.99,202.97,38.38]
[1756790284612,0.06,202.99,202.98,17.77638537]
[1756790285011,0.06,202.99,202.98,22.70297912]
[1756790286503,0.06,202.99,202.98,57.58218776]
[1756790288614,0.06,202.99,202.97,4.92680429]
[1756790288793,0.52,202.99,202.96,38.39]
[1756790288992,0.52,202.99,202.96,112.39]
[1756790289519,0.52,202.99,202.96,74.03]
[1756790289725,0.52,202.99,202.96,78.9570517]
[1756790289887,0.46,202.98,202.96,74.03]
[1756790290216,26.46,202.97,202.96,0.03]
[1756790292390,0.52,202.99,202.96,0.03]
[1756790292805,0.46,202.98,202.96,0.03]
[1756790293206,0.46,202.98,202.96,74.03]
[1756790294837,26.06,202.99,202.96,74.03]
[1756790295018,0.06,202.99,202.96,78.95701226]
[1756790295394,0.06,202.99,202.97,0.66]
[1756790295910,0.06,202.99,202.98,0.66]
[1756790297198,0.06,202.99,202.98,5.58659375]
[1756790299236,0.06,202.99,202.98,79.58659375]
[1756790301414,0.06,202.99,202.98,74.0]
[1756790302319,0.52,202.99,202.98,74.0]
[1756790302522,0.52,202.99,202.96,0.03]
[1756790303310,0.46,202.98,202.96,0.03]
[1756790303516,0.06,202.99,202.96,0.03]
[1756790303825,26.06,202.99,202.96,0.03]
[1756790304501,0.06,202.99,202.96,0.03]
[1756790304712,0.06,202.99,202.96,0.69]
[1756790304894,0.06,202.99,202.97,0.66]
[1756790305494,0.06,202.99,202.98,0.66]
[1756790306928,0.06,202.99,202.98,5.58659375]
[1756790311537,0.06,202.99,202.98,79.58659375]
[1756790314047,0.06,202.99,202.98,93.18218776]
[1756790314620,0.06,202.99,202.98,95.42298902]
[1756790315925,0.06,202.99,202.98,133.78298902]
[1756790316535,0.06,202.99,202.98,131.54218776]
[1756790318350,0.06,202.99,202.98,133.78298902]
[1756790318943,1e-08,202.99,202.98,133.78298902]
[1756790319631,1e-08,203.01,203.0,39.59559401]
[1756790319823,1e-08,203.01,203.0,80.19639527]
[1756790320128,1e-08,203.01,203.0,80.91639527]
[1756790320529,1e-08,203.01,203.0,85.84250364]
[1756790321338,1e-08,203.01,203.0,83.60170238]
[1756790322857,1e-08,203.01,203.0,157.60170238]
[1756790323158,1e-08,203.01,203.0,159.84250364]
[1756790323650,1e-08,203.01,203.0,157.60170238]
[1756790323851,1e-08,203.01,203.0,159.84250364]
[1756790324250,1e-08,203.01,203.0,157.60170238]
[1756790327967,1e-08,203.01,203.0,93.24170238]
[1756790328151,1e-08,203.01,203.0,130.88170238]
[1756790328543,1e-08,203.01,203.0,131.60170238]
[1756790329362,1e-08,203.01,203.0,133.84250364]
[1756790332458,1e-08,203.01,203.0,131.60170238]
[1756790334448,1e-08,203.01,203.0,133.84250364]
[1756790336264,1e-08,203.01,203.0,131.60170238]
[1756790336467,1e-08,203.01,203.0,133.84250364]
[1756790336777,1e-08,203.01,203.0,131.60170238]
[1756790337465,1e-08,203.01,203.0,133.84250364]
[1756790338073,1e-08,203.01,203.0,131.60170238]
[1756790338752,1e-08,203.01,203.0,131.58170238]
[1756790340272,1e-08,203.01,203.0,133.82250364]
[1756790340471,0.06,203.04,203.03,2.24080126]
[1756790340683,0.06,203.04,203.03,54.17639527]
[1756790340856,0.06,203.04,203.03,54.89639527]
[1756790341372,0.06,203.04,203.03,135.19639527]
[1756790342472,0.06,203.04,203.03,140.12177575]
[1756790343472,0.06,203.04,203.03,214.12177575]
[1756790345198,0.06,203.04,203.03,211.87097449]
[1756790346500,0.06,203.04,203.03,131.57097449]
[1756790348683,0.06,203.04,203.03,133.81177575]
[1756790348883,1e-08,203.04,203.03,214.11177575]
[1756790349090,0.1,203.06,203.04,13.59559401]
[1756790349292,0.1,203.06,203.05,54.17639527]
[1756790349605,0.1,203.06,203.05,140.11129061]
[1756790350386,1e-08,203.06,203.05,140.11129061]
[1756790351675,1e-08,203.06,203.05,59.81129061]
[1756790351875,1e-08,203.06,203.05,59.79129061]
[1756790353488,1e-08,203.06,203.05,74.58747361]
[1756790354208,1e-08,203.06,203.05,148.58747361]
[1756790356011,4.13904441,203.23,203.05,148.58747361]
[1756790356187,0.46,203.2,203.13,13.59559401]
[1756790356374,0.46,203.2,203.15,13.59559401]
[1756790356578,0.46,203.23,203.17,15.83639527]
[1756790356803,14.796183,203.25,203.19,13.59559401]
[1756790356992,0.46,203.25,203.21,13.59559401]
[1756790357193,4.13904441,203.32,203.23,13.59559401]
[1756790357401,0.46,203.27,203.24,38.32]
[1756790357607,0.46,203.26,203.25,38.32]
[1756790357907,0.46,203.29,203.25,38.32]
[1756790358101,0.46,203.28,203.26,4.91980714]
[1756790358303,26.0,203.32,203.26,4.91980714]
[1756790358505,0.46,203.27,203.26,4.91980714]
[1756790358909,6.4746614,203.35,203.25,38.32]
[1756790358910,0.46,203.29,203.25,38.32]
[1756790359110,0.46,203.28,203.26,74.0]
[1756790359301,0.46,203.27,203.26,74.0]
[1756790360013,0.46,203.27,203.25,38.32]
[1756790360206,0.46,203.26,203.24,38.32]
[1756790361692,4.91918077,203.29,203.21,23.36477197]
[1756790361900,0.46,203.25,203.21,9.76917796]
[1756790362106,0.46,203.25,203.22,51.91559401]
[1756790362306,0.46,203.25,203.22,13.59559401]
[1756790362500,0.46,203.25,203.23,38.32]
[1756790362698,4.91918077,203.29,203.23,38.32]
[1756790362699,0.46,203.27,203.23,38.32]
[1756790363016,0.46,203.26,203.24,74.0]
[1756790364896,4.91883915,203.3,203.24,74.0]
[1756790365118,0.46,203.29,203.21,4.84838706]
[1756790365306,4.91883915,203.3,203.21,4.84838706]
[1756790365307,0.46,203.28,203.22,38.3]
[1756790365513,0.46,203.27,203.22,38.3]
[1756790365699,4.91883915,203.3,203.22,38.3]
[1756790365899,0.46,203.29,203.22,38.3]
[1756790366522,4.9193231,203.28,203.22,38.3]
[1756790366721,26.46,203.31,203.23,14.30559401]
[1756790366919,26.46,203.31,203.25,13.59559401]
[1756790367519,0.46,203.3,203.25,13.59559401]
[1756790367707,0.46,203.29,203.25,13.59559401]
[1756790367901,0.46,203.29,203.24,43.9302216]
[1756790368111,0.46,203.29,203.25,74.0]
[1756790368501,0.46,203.28,203.25,74.0]
[1756790368696,0.46,203.27,203.22,13.59559401]
[1756790368903,0.46,203.28,203.22,19.22632261]
[1756790369618,0.46,203.3,203.23,0.71]
[1756790370001,5.37887649,203.3,203.23,5.63037523]
[1756790370220,0.46,203.3,203.23,5.63037523]
[1756790371723,0.46,203.3,203.23,79.63037523]
[1756790372196,0.46,203.29,203.23,79.63037523]
[1756790373093,0.46,203.28,203.23,74.0]
[1756790373406,0.46,203.27,203.23,74.0]
[1756790374122,26.0,203.29,203.23,74.0]
[1756790374301,26.0,203.29,203.19,4.92149205]
[1756790374302,0.46,203.26,203.2,5.63118749]
[1756790374496,0.46,203.28,203.21,0.71]
[1756790374698,26.0,203.29,203.21,0.71]
[1756790375325,26.0,203.28,203.21,0.71]
[1756790375899,0.46,203.3,203.22,13.59559401]
[1756790376209,31.43837486,203.32,203.23,5.59053338]
[1756790376404,31.43837486,203.32,203.24,0.67]
[1756790376720,0.52,203.32,203.25,13.59559401]
[1756790376899,0.06,203.32,203.26,0.67]
[1756790377106,26.0,203.31,203.26,0.67]
[1756790377410,26.0,203.31,203.26,74.67]
[1756790377614,26.0,203.31,203.3,7.35]
[1756790378609,0.06,203.32,203.3,7.35]
[1756790378610,26.06,203.32,203.3,7.35]
[1756790379027,0.06,203.32,203.3,7.35]
[1756790379322,0.06,203.32,203.3,8.02]
[1756790379904,0.06,203.32,203.31,0.67]
[1756790380724,0.06,203.32,203.3,7.35]
[1756790380933,0.06,203.32,203.3,8.02]
[1756790381100,0.06,203.32,203.3,7.35]
[1756790381304,0.06,203.32,203.31,0.67]
[1756790382331,0.06,203.32,203.3,7.35]
[1756790382508,0.06,203.32,203.3,8.02]
[1756790383632,0.06,203.32,203.3,82.02]
[1756790383814,0.52,203.32,203.3,81.35]
[1756790384009,0.06,203.32,203.3,7.35]
[1756790384214,0.06,203.32,203.31,0.67]
[1756790387024,0.06,203.32,203.31,74.67]
[1756790388026,0.06,203.32,203.31,74.0]
[1756790389226,0.06,203.32,203.31,74.67]
[1756790389916,0.06,203.32,203.31,0.67]
[1756790392937,0.06,203.32,203.31,74.67]
[1756790393841,0.06,203.32,203.31,74.0]
[1756790394038,0.06,203.32,203.3,7.35]
[1756790397144,0.06,203.32,203.3,81.35]
[1756790398841,26.46,203.31,203.3,7.35]
[1756790399034,26.0,203.31,203.3,7.35]
[1756790400035,30.91859721,203.31,203.3,7.35]
[1756790400227,31.37859721,203.31,203.25,0.67]
[1756790400548,38.34,203.32,203.25,0.67]
[1756790400549,0.06,203.32,203.26,13.59559401]
[1756790400748,0.06,203.32,203.27,0.67]
[1756790401140,0.06,203.32,203.28,13.59559401]
[1756790401323,0.06,203.32,203.29,0.67]
[1756790401823,0.06,203.32,203.29,74.0]
[1756790402027,0.06,203.32,203.29,74.67]
[1756790402431,0.06,203.32,203.3,0.67]
[1756790406931,0.06,203.32,203.28,0.68]
[1756790407130,0.06,203.32,203.29,0.68]
[1756790407758,0.06,203.32,203.22,12.30178383]
[1756790407759,0.06,203.32,203.27,0.68]
[1756790407943,0.52,203.32,203.27,0.68]
[1756790408330,0.52,203.32,203.27,74.68]
[1756790408656,0.52,203.32,203.28,0.68]
[1756790408850,4.91859721,203.31,203.28,0.68]
[1756790409530,4.91859721,203.31,203.27,74.0]
[1756790409735,4.91859721,203.31,203.29,0.68]
[1756790410762,4.91859721,203.31,203.27,74.68]
[1756790411259,43.19859721,203.31,203.27,74.0]
[1756790411447,47.79764162,203.31,203.25,0.68]
[1756790411851,38.28,203.31,203.25,0.68]
[1756790413060,35.11742173,203.32,203.26,4.91980714]
[1756790413247,69.25837732,203.32,203.27,0.68]
[1756790413848,69.71837732,203.32,203.27,0.68]
[1756790414060,69.71837732,203.32,203.21,38.28]
[1756790414061,0.46,203.31,203.24,0.68]
[1756790414269,0.46,203.3,203.24,0.68]
[1756790414569,0.46,203.3,203.24,74.68]
[1756790414770,26.46,203.29,203.22,0.68]
[1756790415068,4.91956511,203.27,203.22,0.68]
[1756790415451,5.37956511,203.27,203.22,0.68]
[1756790415671,4.91956511,203.27,203.19,13.59559401]
[1756790415874,26.0,203.24,203.2,0.68]
[1756790416852,0.46,203.23,203.17,13.59559401]
[1756790417051,26.0,203.24,203.18,0.68]
[1756790417241,4.92053338,203.23,203.22,0.03]
[1756790418254,5.38053338,203.23,203.18,74.0]
[1756790418584,5.38053338,203.23,203.15,0.68]
[1756790418585,26.0,203.2,203.15,0.68]
[1756790418870,38.28,203.19,203.16,0.68]
[1756790419243,43.20150342,203.19,203.14,0.68]
[1756790419443,26.0,203.16,203.12,0.68]
[1756790419671,26.0,203.16,203.1,0.68]
[1756790419860,38.28,203.15,203.1,0.68]
[1756790420483,38.28,203.15,203.07,13.59559401]
[1756790420769,38.28,203.15,203.11,0.68]
[1756790420986,38.28,203.15,203.07,18.51999506]
[1756790421181,38.28,203.15,203.12,0.68]
[1756790421671,38.28,203.15,203.12,74.68]
[1756790422073,38.28,203.15,203.12,74.0]
[1756790422269,0.46,203.14,203.08,0.68]
[1756790422447,26.0,203.12,203.08,0.68]
[1756790422649,38.28,203.11,203.06,0.03]
[1756790422963,38.28,203.11,203.06,0.71]
[1756790423981,38.28,203.14,203.07,13.59559401]
[1756790424176,26.0,203.16,203.09,13.59559401]
[1756790424362,64.28,203.16,203.08,13.59559401]
[1756790424671,64.28,203.16,203.09,0.68]
[1756790424872,64.28,203.16,203.1,4.92368291]
[1756790425048,64.28,203.16,203.11,0.68]
[1756790425246,26.0,203.16,203.12,0.68]
[1756790425473,38.28,203.18,203.13,0.68]
[1756790425774,38.28,203.19,203.13,0.68]
[1756790426470,26.0,203.19,203.14,4.92271339]
[1756790426678,0.46,203.24,203.15,0.68]
[1756790426861,38.28,203.22,203.15,0.68]
[1756790427055,64.28,203.22,203.15,0.68]
[1756790427673,26.0,203.19,203.13,4.92272473]
[1756790427871,26.0,203.19,203.13,5.60272473]
[1756790428254,26.0,203.19,203.13,4.92272473]
[1756790428567,26.0,203.19,203.14,0.68]
[1756790429373,26.0,203.19,203.15,4.92247108]
[1756790429760,26.0,203.19,203.15,78.92247108]
[1756790430162,26.0,203.19,203.15,79.60247108]
[1756790430673,38.3,203.23,203.16,0.68]
[1756790430876,64.3,203.23,203.16,0.68]
[1756790431475,64.3,203.23,203.17,4.92198651]
[1756790431649,64.3,203.23,203.18,0.68]
[1756790431857,64.76,203.23,203.18,0.68]
[1756790432177,0.46,203.27,203.19,0.68]
[1756790432382,38.3,203.25,203.19,0.68]
[1756790432878,0.46,203.24,203.17,4.92198651]
[1756790433076,0.46,203.24,203.17,5.60198651]
[1756790433654,0.46,203.24,203.18,0.68]
[1756790434754,26.0,203.22,203.18,0.68]
[1756790434956,31.38035218,203.24,203.18,0.68]
[1756790435170,31.38035218,203.24,203.19,74.03]
[1756790435859,30.92035218,203.24,203.19,74.03]
[1756790436059,31.38035218,203.24,203.19,74.74]
[1756790436472,26.46,203.24,203.19,74.74]
[1756790436674,26.46,203.24,203.19,79.66142014]
[1756790437358,26.46,203.24,203.19,74.74]
[1756790437551,26.46,203.24,203.19,0.03]
[1756790437552,26.0,203.21,203.19,0.03]
[1756790437882,38.28,203.21,203.19,0.03]
[1756790438067,38.74,203.21,203.19,0.03]
[1756790438264,38.28,203.21,203.19,0.03]
[1756790444387,38.28,203.21,203.19,0.74]
[1756790444682,40.794723,203.23,203.2,0.71]
[1756790444869,79.074723,203.23,203.21,0.71]
[1756790445377,64.28,203.23,203.21,0.71]
[1756790446184,64.28,203.23,203.19,5.66135511]
[1756790446394,64.74,203.23,203.19,0.03]
[1756790446594,69.66055661,203.23,203.19,0.03]
[1756790447385,0.46,203.22,203.19,0.03]
[1756790447878,5.38081447,203.22,203.19,0.03]
[1756790449390,38.28,203.21,203.19,0.03]
[1756790449590,43.66104985,203.21,203.19,0.03]
[1756790449786,0.46,203.2,203.19,0.03]
[1756790450876,43.20104985,203.21,203.19,0.03]
[1756790451696,43.66104985,203.21,203.19,0.03]
[1756790455099,48.58371685,203.21,203.19,0.03]
[1756790455298,48.12371685,203.21,203.19,0.03]
[1756790458816,4.922667,203.21,203.19,0.03]
[1756790459018,64.28,203.2,203.19,0.03]
[1756790459312,26.0,203.2,203.19,0.03]
[1756790459511,26.0,203.2,203.19,0.74]
[1756790459897,26.0,203.2,203.19,0.03]
[1756790460821,26.0,203.2,203.19,0.74]
[1756790462515,26.0,203.2,203.19,0.03]
[1756790464703,26.0,203.2,203.19,0.74]
[1756790465719,0.06,203.22,203.19,0.74]
[1756790466726,26.0,203.2,203.19,0.03]
[1756790466896,64.28,203.2,203.19,0.03]
[1756790467904,64.74,203.2,203.16,0.03]
[1756790468414,0.46,203.19,203.16,0.03]
[1756790468601,43.20180933,203.18,203.16,0.03]
[1756790468804,38.28,203.18,203.16,0.03]
[1756790469610,38.28,203.2,203.17,0.72]
[1756790469926,38.28,203.2,203.17,74.72]
[1756790470130,38.28,203.2,203.18,0.72]
[1756790470317,38.28,203.21,203.17,74.0]
[1756790470500,38.28,203.21,203.18,0.72]
[1756790471125,38.28,203.21,203.16,0.03]
[1756790471332,26.0,203.18,203.16,0.03]
[1756790471628,38.28,203.17,203.16,0.03]
[1756790474004,43.20198651,203.17,203.16,0.03]
[1756790475438,38.28,203.17,203.16,0.75]
[1756790476033,26.0,203.17,203.16,0.75]
[1756790476238,64.28,203.17,203.16,0.75]
[1756790476634,26.0,203.17,203.16,0.75]
[1756790476827,26.0,203.17,203.16,0.03]
[1756790477013,64.28,203.17,203.16,0.03]
[1756790477740,69.20198651,203.17,203.16,0.03]
[1756790478615,64.28,203.17,203.16,0.03]
[1756790478817,69.20198651,203.17,203.16,0.03]
[1756790479012,69.20198651,203.17,203.12,0.03]
[1756790479013,69.66198651,203.17,203.12,0.03]
[1756790479229,0.46,203.16,203.12,0.03]
[1756790479445,26.0,203.13,203.12,0.03]
[1756790479643,64.74,203.13,203.06,0.75]
[1756790479834,0.46,203.12,203.06,0.75]
[1756790480034,38.28,203.11,203.06,0.75]
[1756790480640,38.28,203.11,203.07,0.72]
[1756790480943,38.28,203.11,203.08,0.72]
[1756790481243,38.28,203.11,203.06,0.03]
[1756790481451,5.38368291,203.1,203.06,0.03]
[1756790481744,38.28,203.09,203.06,0.03]
[1756790481946,38.28,203.09,203.06,74.03]
[1756790482337,38.74,203.09,203.06,0.03]
[1756790483651,4.92416781,203.08,203.06,0.03]
[1756790483853,38.28,203.07,203.06,0.03]
[1756790485949,43.6644103,203.07,203.06,0.03]
[1756790486148,7.3585003,203.07,203.06,0.03]
[1756790486347,45.1785003,203.07,203.06,0.03]
[1756790487937,26.0,203.04,203.03,0.03]
[1756790488142,64.3,203.04,203.03,0.03]
[1756790488358,64.76,203.04,203.03,0.03]
[1756790489565,66.27448,203.04,203.03,0.03]
[1756790490191,71.1996179,203.04,203.03,0.03]
[1756790490533,75.20921689,203.04,203.03,0.03]
[1756790490954,49.66921689,203.04,203.03,0.03]
[1756790491430,26.0,203.01,203.0,0.03]
[1756790491658,64.3,203.01,203.0,0.03]
[1756790492264,71.20073572,203.01,203.0,0.03]
[1756790492495,71.66073572,203.01,203.0,0.03]
[1756790493888,71.20073572,203.01,203.0,0.03]
[1756790494893,71.66073572,203.01,203.0,0.03]
[1756790495468,71.20073572,203.01,203.0,0.03]
[1756790495669,27.97487,203.01,203.0,0.74]
[1756790495893,66.27487,203.01,203.0,0.74]
[1756790496109,66.27487,203.01,203.0,0.03]
[1756790497291,64.3,203.01,203.0,0.74]
[1756790501301,64.3,203.01,203.0,0.03]
[1756790501508,69.22586572,203.01,203.0,0.03]
[1756790502507,71.20063772,203.01,203.0,0.03]
[1756790503006,66.274772,203.01,203.0,0.03]
[1756790503193,66.274772,203.01,203.0,0.74]
[1756790503391,27.974772,203.01,203.0,0.74]
[1756790503612,66.274772,203.01,203.0,0.74]
[1756790504608,64.3,203.01,203.0,0.74]
[1756790504988,26.0,203.01,203.0,0.74]
[1756790505311,38.3,203.02,203.0,0.74]
[1756790505482,38.3,203.02,203.0,0.03]
[1756790505683,38.3,203.02,203.0,0.74]
[1756790505987,38.3,203.02,203.01,0.71]
[1756790506387,38.3,203.02,203.0,0.74]
[1756790507079,38.76,203.02,203.0,0.03]
[1756790507418,43.22563922,203.02,203.0,0.03]
[1756790508004,1.974773,203.01,203.0,0.03]
[1756790510120,32.90063872,203.01,203.0,0.03]
[1756790512416,26.0,202.99,202.98,0.2]
[1756790512718,38.76,203.0,202.98,0.2]
[1756790513098,6.90151305,202.99,202.98,0.2]
[1756790513710,40.275162,202.99,202.98,0.2]
[1756790513919,45.20151305,202.99,202.98,0.2]
[1756790515092,45.66151305,202.99,202.98,0.2]
[1756790515621,45.66151305,202.99,202.97,0.03]
[1756790515803,0.46,202.98,202.97,0.03]
[1756790516207,43.22635105,202.99,202.97,0.03]
[1756790516608,1.97526,202.98,202.97,0.03]
[1756790517009,40.27526,202.98,202.97,0.74]
[1756790518604,45.20185375,202.98,202.97,0.03]
[1756790519336,40.27526,202.98,202.97,0.74]
[1756790519537,1.97526,202.98,202.97,0.74]
[1756790519735,40.27526,202.98,202.97,0.74]
[1756790520127,1.97526,202.98,202.97,0.74]
[1756790520420,40.27526,202.98,202.97,0.74]
[1756790520818,40.27526,202.98,202.97,0.03]
[1756790521322,45.20185375,202.98,202.97,0.03]
[1756790521628,40.27526,202.98,202.97,0.03]
[1756790522206,1.97526,202.98,202.97,0.74]
[1756790522440,38.32,202.98,202.97,0.74]
[1756790522640,38.32,202.99,202.97,5.66680198]
[1756790522843,38.38,203.02,202.98,0.71]
[1756790523041,2.575218,203.0,202.98,0.71]
[1756790523263,0.06,203.02,202.98,0.71]
[1756790523936,0.06,203.02,203.0,3.50165198]
[1756790524143,38.38,203.07,203.01,4.21165198]
[1756790524359,38.38,203.07,203.01,0.71]
[1756790524736,38.38,203.07,203.01,5.63580501]
[1756790524932,38.38,203.07,202.97,15.84874317]
[1756790524933,26.0,203.02,202.97,0.74]
[1756790525136,38.34,203.01,202.98,0.71]
[1756790525357,38.34,203.01,202.99,0.7]
[1756790526045,38.34,203.01,202.97,0.73]
[1756790526446,38.34,203.01,202.98,0.7]